fUSD/lending_fUSD_20260219
["ID","MTS","AMOUNT","RATE_DAILY","PERIOD"]
[405961518,1771459938870,-508.65362771,0.00043835,120]
[405961519,1771459938928,-500.0,0.00043835,120]
[405961520,1771459938987,-507.73539618,0.00043835,120]
[405961521,1771459939047,-508.79256972,0.00043835,120]
[405961522,1771459939104,-497.50008856,0.00043835,120]
[405961523,1771459939162,-511.71532836,0.00043835,120]
[405961524,1771459939219,-180.78559558,0.00043835,120]
[405961525,1771459939277,-327.34488322,0.00043835,120]
[405961526,1771459939337,-516.02406689,0.00043835,120]
[405961527,1771459939397,-507.28478639,0.00043835,120]
[405961528,1771459939457,-509.9334097,0.00043835,120]
[405961529,1771459939519,-500.0,0.00043835,120]
[405961530,1771459939580,-249.93098003,0.00043835,120]
[405961531,1771459939814,-516.41493459,0.00043835,120]
[405961532,1771459939871,-178.14517144,0.00043835,120]
[405961533,1771459939927,-500.0,0.00043835,120]
[405961534,1771459939982,-500.0,0.00043835,120]
[405961535,1771459940040,-500.0,0.00043835,120]
[405961536,1771459940096,-253.62466127,0.00043835,120]
[405961537,1771459940150,-510.12184332,0.00043835,120]
[405961538,1771459940205,-167.19693749,0.00043835,120]
[405961539,1771459940262,-512.68787608,0.00043835,120]
[405961540,1771459940316,-548.96251705,0.00043835,120]
[405961541,1771459940374,-469.6478111,0.00043835,90]
[405961542,1771459940431,-500.0,0.00043835,120]
[405961543,1771459940491,-537.95504729,0.00043835,120]
[405961544,1771459940550,-500.0,0.00043835,30]
[405961545,1771459940614,-500.0,0.00043835,120]
[405961546,1771459940670,-500.0,0.00043835,30]
[405961547,1771459940728,-372.32,0.00043835,30]
[405961548,1771459940783,-774.66,0.00043835,120]
[405961549,1771459940838,-774.66,0.00043835,120]
[405961550,1771459940894,-774.66,0.00043835,120]
[405961551,1771459940956,-774.66,0.00043835,120]
[405961552,1771459941015,-774.66,0.00043835,120]
[405961553,1771459941070,-774.66,0.00043835,120]
[405961554,1771459941127,-774.66,0.00043835,120]
[405961555,1771459941180,-774.66,0.00043835,120]
[405961556,1771459941236,-774.66,0.00043835,120]
[405961557,1771459941292,-774.66,0.00043835,120]
[405961558,1771459941348,-774.66,0.00043835,120]
[405961559,1771459941407,-774.66,0.00043835,120]
[405961560,1771459941467,-774.66,0.00043835,120]
[405961561,1771459941525,-774.66,0.00043835,120]
[405961562,1771459941582,-774.66,0.00043835,120]
[405961563,1771459941641,-774.66,0.00043835,120]
[405961564,1771459941701,-774.66,0.00043835,120]
[405961565,1771459941761,-774.66,0.00043835,120]
[405961566,1771459941816,-774.66,0.00043835,120]
[405961567,1771459941875,-774.66,0.00043835,120]
[405961568,1771459941934,-774.66,0.00043835,120]
[405961569,1771459942003,-774.66,0.00043835,120]
[405961570,1771459942083,-774.66,0.00043835,120]
[405961571,1771459942139,-774.86788264,0.00043835,120]
[405961572,1771459942196,-500.0,0.00043835,120]
[405961573,1771459942252,-500.0,0.00043835,120]
[405961574,1771459942309,-500.0,0.00043835,120]
[405961575,1771459942365,-500.0,0.00043835,120]
[405961576,1771459942424,-500.0,0.00043835,120]
[405961577,1771459942482,-500.0,0.00043835,120]
[405961578,1771459942541,-500.0,0.00043835,120]
[405961579,1771459942600,-500.0,0.00043835,120]
[405961580,1771459942659,-500.0,0.00043835,120]
[405961581,1771459942717,-500.0,0.00043835,120]
[405961582,1771459942779,-500.0,0.00043835,120]
[405961583,1771459942836,-500.0,0.00043835,120]
[405961584,1771459942892,-500.0,0.00043835,120]
[405961585,1771459942948,-500.0,0.00043835,120]
[405961586,1771459943006,-48983.779287,0.00043835,120]
[405961587,1771459943063,-1000.0,0.00043835,120]
[405961588,1771459943122,-1000.0,0.00043835,120]
[405961589,1771459943181,-1000.0,0.00043835,120]
[405961590,1771459943241,-1000.0,0.00043835,120]
[405961591,1771459943305,-1000.0,0.00043835,120]
[405961592,1771459943369,-1051.78061469,0.00043835,120]
[405961593,1771459943435,-151.0,0.00043835,120]
[405961594,1771459943501,-151.0,0.00043835,120]
[405961595,1771459943564,-151.0,0.00043835,120]
[405961596,1771459943637,-150.0,0.00043835,120]
[405961597,1771459943703,-1000.0,0.00043835,120]
[405961598,1771459943772,-540.50961097,0.00043835,120]
[405961599,1771459943842,-841.0,0.00043836,120]
[405961600,1771459943913,-164.29,0.00043836,120]
[405961601,1771459943977,-151.0,0.00043836,120]
[405961602,1771459944045,-151.0,0.00043836,120]
[405961603,1771459944106,-151.0,0.00043836,120]
[405961604,1771459944174,-151.0,0.00043836,120]
[405961605,1771459944234,-151.0,0.00043836,120]
[405961606,1771459944295,-151.0,0.00043836,120]
[405961607,1771459944355,-151.0,0.00043836,120]
[405961608,1771459944415,-151.0,0.00043836,120]
[405961609,1771459944476,-151.0,0.00043836,120]
[405961610,1771459944538,-151.0,0.00043836,120]
[405961611,1771459944600,-151.0,0.00043836,120]
[405961612,1771459944664,-151.0,0.00043836,120]
[405961613,1771459944726,-151.0,0.00043836,120]
[405961614,1771459944786,-1366.15,0.00043836,120]
[405961615,1771459944845,-2110.0,0.00043926,30]
[405961616,1771459944903,-300.0,0.0004399,30]
[405961617,1771459944961,-200.0,0.00043999,120]
[405961618,1771459945214,-500.0,0.00044,120]
[405961619,1771459945276,-560.684,0.00044,57]
[405961620,1771459945342,-500.0,0.00044,120]
[405961621,1771459945405,-500.0,0.00044,43]
[405961622,1771459945469,-233.0,0.00044085,120]
[405961623,1771459945532,-841.0,0.0004411,120]
[405961624,1771459945594,-183.60170367,0.00044247,30]
[405961625,1771459945657,-150.0,0.00044281,120]
[405961626,1771459945717,-50000.0,0.00044346,58]
[405961627,1771459945780,-50000.0,0.00044346,59]
[405961628,1771459945843,-50000.0,0.00044346,61]
[405961629,1771459945906,-50000.0,0.00044346,62]
[405961630,1771459945969,-50000.0,0.00044346,63]
[405961631,1771459946031,-50000.0,0.00044346,50]
[405961632,1771459946093,-50000.0,0.00044346,45]
[405961633,1771459946152,-834.24676791,0.00044347,30]
[405961634,1771459946213,-834.24676791,0.00044347,30]
[405961635,1771459946272,-520.30128387,0.00044347,30]
[405961636,1771459946330,-520.30128387,0.00044347,30]
[405961637,1771459946388,-221.68,0.00044347,60]
[405961638,1771459946466,-841.0,0.00044384,120]
[405961639,1771459946529,-4595.4522139,0.000444,120]
[405961640,1771459946589,-240.6,0.000444,78]
[405961641,1771459946649,-150.0,0.000444,120]
[405961642,1771459946708,-3700.0,0.000444,120]
[405961643,1771459946769,-150.0,0.000444,120]
[405961644,1771459946829,-150.0,0.000444,120]
[405961645,1771459946887,-150.0,0.000444,120]
[405961646,1771459946945,-150.0,0.000444,120]
[405961647,1771459947002,-2110.0,0.00044426,30]
[405961648,1771459947060,-1508.0,0.00044426,30]
[405961649,1771459947119,-156.0,0.00044426,30]
[405961650,1771459947179,-1508.0,0.00044426,30]
[405961651,1771459947239,-153.0,0.00044426,30]
[405961652,1771459947298,-1508.0,0.00044426,30]
[405961653,1771459947358,-153.0,0.00044426,30]
[405961654,1771459947419,-152.0,0.00044426,30]
[405961655,1771459947479,-1508.0,0.00044426,30]
[405961656,1771459947538,-153.0,0.00044426,30]
[405961657,1771459947596,-152.0,0.00044426,30]
[405961658,1771459947659,-1508.0,0.00044426,30]
[405961659,1771459947720,-153.0,0.00044426,30]
[405961660,1771459947782,-152.0,0.00044426,30]
[405961661,1771459947839,-153.0,0.00044426,30]
[405961662,1771459947902,-1508.0,0.00044426,30]
[405961663,1771459947962,-152.0,0.00044426,30]
[405961664,1771459948021,-1508.0,0.00044426,30]
[405961665,1771459948085,-153.0,0.00044426,30]
[405961666,1771459948146,-152.0,0.00044426,30]
[405961667,1771459948205,-1508.0,0.00044426,30]
[405961668,1771459948263,-153.0,0.00044426,30]
[405961669,1771459948322,-152.0,0.00044426,30]
[405961670,1771459948385,-1508.0,0.00044426,30]
[405961671,1771459948448,-153.0,0.00044426,30]
[405961672,1771459948507,-153.0,0.00044426,30]
[405961673,1771459948565,-153.0,0.00044426,30]
[405961674,1771459948625,-152.0,0.00044426,30]
[405961675,1771459948687,-153.0,0.00044426,30]
[405961676,1771459948752,-1508.0,0.00044426,30]
[405961677,1771459948814,-152.0,0.00044426,30]
[405961678,1771459948875,-1508.0,0.00044426,30]
[405961679,1771459948935,-152.0,0.00044426,30]
[405961680,1771459948997,-1508.0,0.00044426,30]
[405961681,1771459949060,-152.0,0.00044426,30]
[405961682,1771459949121,-1508.0,0.00044426,30]
[405961683,1771459949179,-152.0,0.00044426,30]
[405961684,1771459949238,-1508.0,0.00044426,30]
[405961685,1771459949297,-152.0,0.00044426,30]
[405961686,1771459949359,-1508.0,0.00044426,30]
[405961687,1771459949421,-152.0,0.00044426,30]
[405961688,1771459949486,-152.0,0.00044426,30]
[405961689,1771459949551,-152.0,0.00044426,30]
[405961690,1771459949615,-152.0,0.00044426,30]
[405961691,1771459949682,-152.0,0.00044426,30]
[405961692,1771459949748,-170942.32685118,0.00044426,30]
[405961693,1771459949809,-170942.32685118,0.00044426,30]
[405961694,1771459949868,-170942.32685118,0.00044426,30]
[405961695,1771459949924,-58797.80311376,0.00044466,30]
[405961696,1771459949981,-1020.51,0.0004448,120]
[405961697,1771459950042,-1000.0,0.000445,120]
[405961698,1771459950102,-500.0,0.000445,120]
[405961699,1771459950165,-393.0,0.0004455,120]
[405961700,1771459950229,-841.0,0.00044658,120]
[405961701,1771459950291,-1037.3,0.0004466,120]
[405961702,1771459950351,-239.84119403,0.00044693,47]
[405961703,1771459950410,-248.71531821,0.00044693,49]
[405961704,1771459950622,-257.91778498,0.00044693,51]
[405961705,1771459950684,-267.46074303,0.00044693,52]
[405961706,1771459950744,-10014.57719223,0.00044693,47]
[405961707,1771459950805,-10385.11654834,0.00044693,49]
[405961708,1771459950863,-2580.04100828,0.00044693,51]
[405961709,1771459950922,-231.28369723,0.00044694,30]
[405961710,1771459950987,-9657.25862317,0.00044694,30]
[405961711,1771459951048,-9312.68912553,0.00044695,120]
[405961712,1771459951106,-150.0,0.00044877,30]
[405961713,1771459951167,-150.0,0.00044877,30]
[405961714,1771459951225,-150.0,0.00044877,30]
[405961715,1771459951289,-150.0,0.00044877,30]
[405961716,1771459951353,-150.0,0.00044877,30]
[405961717,1771459951420,-150.0,0.00044877,30]
[405961718,1771459951487,-150.0,0.00044877,30]
[405961719,1771459951557,-150.0,0.00044877,30]
[405961720,1771459951623,-150.0,0.00044877,30]
[405961721,1771459951688,-150.0,0.00044877,30]
[405961722,1771459951749,-150.0,0.00044877,30]
[405961723,1771459951811,-150.00000001,0.00044877,30]
[405961724,1771459951867,-150.00000001,0.00044877,30]
[405961725,1771459951925,-150.0,0.00044877,30]
[405961726,1771459951984,-150.0,0.00044877,30]
[405961727,1771459952043,-150.44008389,0.00044877,30]
[405961728,1771459952101,-150.0,0.00044877,30]
[405961729,1771459952159,-150.0,0.00044877,30]
[405961730,1771459952218,-2110.0,0.00044926,30]
[405961731,1771459952280,-841.0,0.00044932,120]
[405961732,1771459952337,-200.0,0.00044999,120]
[405961733,1771459952398,-14580.44,0.00045,120]
[405961734,1771459952462,-160.4,0.00045,85]
[405961735,1771459952528,-500.0,0.00045,120]
[405961736,1771459952595,-1105.0,0.00045035,30]
[405961737,1771459952657,-841.0,0.00045205,120]
[405961738,1771459952720,-150.0,0.00045233,30]
[405961739,1771459952783,-210.8,0.000454,31]
[405961740,1771459952842,-1549.24,0.00045426,30]
[405961741,1771459952899,-150.0,0.00045431,30]
[405961742,1771459952958,-1020.51,0.0004544,120]
[405961743,1771459953016,-841.0,0.00045479,120]
[405961744,1771459953072,-500.0,0.000455,120]
[405961745,1771459953129,-1037.3,0.00045565,120]
[405961746,1771459953186,-150.0,0.00045589,30]
[405961747,1771459953244,-150.0,0.00045589,30]
[405961748,1771459953305,-841.0,0.00045753,120]
[405961749,1771459953364,-150.0,0.00045874,30]
[405961750,1771459953428,-150.0,0.00045874,30]
[405961751,1771459953492,-150.0,0.00045874,30]
[405961752,1771459953555,-150.0,0.00045874,30]
[405961753,1771459953623,-150.0,0.00045874,30]
[405961754,1771459953692,-300.0,0.000459,120]
[405961755,1771459953760,-150.0,0.00045945,30]
[405961756,1771459953824,-150.0,0.00045985,30]
[405961757,1771459953886,-200.0,0.00045999,120]
[405961758,1771459953945,-213.0,0.00046,90]
[405961759,1771459954007,-500.0,0.00046,120]
[405961760,1771459954069,-841.0,0.00046027,120]
[405961761,1771459954130,-150.0,0.00046301,30]
[405961762,1771459954190,-150.0,0.00046301,30]
[405961763,1771459954249,-841.0,0.00046301,120]
[405961764,1771459954313,-1020.51,0.000464,120]
[405961765,1771459954372,-1037.3,0.0004647,120]
[405961766,1771459954432,-15362.33,0.00046484,120]
[405961767,1771459954493,-150.0,0.00046495,120]
[405961768,1771459954556,-500.0,0.000465,120]
[405961769,1771459954615,-150.0,0.00046539,30]
[405961770,1771459954677,-150.0,0.00046539,30]
[405961771,1771459954737,-1464.6075,0.00046575,120]
[405961772,1771459954800,-841.0,0.00046575,120]
[405961773,1771459954858,-609.882516,0.00046575,120]
[405961774,1771459954923,-150.0,0.00046658,30]
[405961775,1771459954990,-1505.18,0.000468,120]
[405961776,1771459955055,-841.0,0.00046849,120]
[405961777,1771459955118,-150.0,0.00046871,30]
[405961778,1771459955180,-150.0,0.00046871,30]
[405961779,1771459955241,-150.0,0.00046871,30]
[405961780,1771459955306,-150.0,0.00046871,30]
[405961781,1771459955372,-150.0,0.00046871,30]
[405961782,1771459955438,-200.0,0.00046999,120]
[405961783,1771459955503,-4286546.06149019,0.00047,30]
[405961784,1771459955564,-289007.99291559,0.00047,30]
[405961785,1771459955624,-217112.18635055,0.00047,30]
[405961786,1771459997979,-1020.61,0.00032,120]
[405961787,1771459998050,-500.0,0.00035991,30]
[405961788,1771459998118,-1037.3,0.00038357,30]
[405961789,1771459998181,-1617.33,0.00039,30]
[405961790,1771459998240,-1037.3,0.0003926,30]
[405961791,1771459998328,-1037.3,0.00040162,30]
[405961792,1771459998390,-1037.3,0.00041065,30]
[405961793,1771459998450,-1037.3,0.00041967,120]
[405961794,1771459998515,-2294.23119,0.00042205,30]
[405961795,1771459998577,-726.0,0.00042782,30]
[405961796,1771459998638,-1037.3,0.00042869,120]
[405961797,1771459998700,-1285.96996097,0.000429,120]
[405961798,1771459998763,-1285.96996087,0.000429,120]
[405961799,1771459998823,-1285.96996087,0.000429,120]
[405961800,1771459998880,-1285.96996087,0.000429,120]
[405961801,1771459998943,-1285.96996087,0.000429,120]
[405961802,1771459999009,-1285.96996087,0.000429,120]
[405961803,1771459999069,-1285.96996087,0.000429,120]
[405961804,1771459999131,-1285.96996087,0.000429,120]
[405961805,1771459999195,-1285.96996087,0.000429,120]
[405961806,1771459999260,-1285.96996087,0.000429,120]
[405961807,1771459999323,-1285.96996087,0.000429,120]
[405961808,1771459999390,-1285.96996087,0.000429,120]
[405961809,1771459999456,-1285.96996087,0.000429,120]
[405961810,1771459999522,-1285.96996087,0.000429,120]
[405961811,1771459999589,-1285.96996087,0.000429,120]
[405961812,1771459999652,-1285.96996087,0.000429,120]
[405961813,1771459999717,-1285.96996087,0.000429,120]
[405961814,1771459999783,-1285.96996087,0.000429,120]
[405961815,1771459999851,-1285.96996087,0.000429,120]
[405961816,1771459999915,-1285.96996087,0.000429,120]
[405961817,1771459999979,-1617.33,0.00043,30]
[405961818,1771460000057,-1037.3,0.00043772,120]
[405961819,1771460000123,-4271.0,0.00043808,120]
[405961820,1771460000187,-4271.0,0.00043808,120]
[405961821,1771460000248,-4271.0,0.00043808,120]
[405961822,1771460000307,-4271.0,0.00043808,120]
[405961823,1771460000366,-4271.0,0.00043808,120]
[405961824,1771460000426,-4271.0,0.00043808,120]
[405961825,1771460000731,-4271.0,0.00043808,120]
[405961826,1771460000794,-4271.0,0.00043808,120]
[405961827,1771460000855,-4271.0,0.00043808,120]
[405961828,1771460000912,-4271.0,0.00043808,120]
[405961829,1771460000984,-4271.0,0.00043808,120]
[405961830,1771460001045,-4271.0,0.00043808,120]
[405961831,1771460001103,-4271.0,0.00043808,120]
[405961832,1771460001165,-4271.0,0.00043808,120]
[405961833,1771460001223,-4271.0,0.00043808,120]
[405961834,1771460001283,-4271.0,0.00043808,120]
[405961835,1771460001343,-4271.0,0.00043808,120]
[405961836,1771460001404,-4271.0,0.00043808,120]
[405961837,1771460001465,-4285.81838609,0.00043808,120]
[405961838,1771460001549,-740.0,0.00043835,30]
[405961839,1771460001609,-740.0,0.00043835,30]
[405961840,1771460001670,-741.0,0.00043835,30]
[405961841,1771460001751,-730.0,0.00044347,30]
[405961842,1771460001810,-150.0,0.000444,120]
[405961843,1771460001867,-300.190811,0.00044425,120]
[405961844,1771460001925,-1037.3,0.00044674,120]
[405961845,1771460001983,-238.15,0.00045,30]
[405961846,1771460002039,-19927.11,0.00045,30]
[405961847,1771460002097,-1037.3,0.00045577,120]
[405961848,1771460002154,-1037.3,0.00046479,120]
[405961849,1771460002212,-579.388397,0.00046575,120]
[405961850,1771460002267,-579.388397,0.00046575,120]
[405961851,1771460002324,-579.388397,0.00046575,120]
[405961852,1771460002382,-579.388397,0.00046575,120]
[405961853,1771460002441,-579.388397,0.00046575,120]
[405961854,1771460002499,-579.388397,0.00046575,120]
[405961855,1771460002559,-579.388397,0.00046575,120]
[405961856,1771460002618,-579.388397,0.00046575,120]
[405961857,1771460002678,-579.388397,0.00046575,120]
[405961858,1771460002734,-579.388397,0.00046575,120]
[405961859,1771460002788,-579.388397,0.00046575,120]
[405961860,1771460002843,-579.388397,0.00046575,120]
[405961861,1771460002898,-579.388397,0.00046575,120]
[405961862,1771460002959,-579.388397,0.00046575,120]
[405961863,1771460003015,-579.388397,0.00046575,120]
[405961864,1771460003073,-579.388397,0.00046575,120]
[405961865,1771460003132,-579.388397,0.00046575,120]
[405961866,1771460003190,-579.388397,0.00046575,120]
[405961867,1771460003254,-579.388397,0.00046575,120]
[405961868,1771460003314,-579.388394,0.00046575,120]
[405961869,1771460003376,-220.0,0.00046999,30]
[405961870,1771460003440,-220.0,0.00046999,30]
[405961871,1771460003505,-220.0,0.00046999,30]
[405961872,1771460003564,-220.0,0.00046999,30]
[405961873,1771460003626,-252.58459976,0.00046999,30]
[405961874,1771460003687,-58157.08163288,0.00047,30]
[405961875,1771460003748,-110136.68502985,0.00047,30]
[405961876,1771460003807,-1426266.00726705,0.00047,30]
[405961877,1771460003869,-2625699.24154718,0.00047,30]
[405961878,1771460003926,-500.0,0.00047,120]
[405961879,1771460003984,-1617.33,0.00047,30]
[405961880,1771460004044,-1396.88,0.00047,120]
[405961881,1771460004105,-150.0,0.00047014,30]
[405961882,1771460004164,-150.0,0.00047014,30]
[405961883,1771460004220,-150.0,0.00047093,30]
[405961884,1771460004280,-841.0,0.00047123,120]
[405961885,1771460004341,-1505.18,0.00047208,120]
[405961886,1771460004400,-19927.11,0.0004725,30]
[405961887,1771460004459,-150.0,0.0004737,30]
[405961888,1771460004523,-150.0,0.0004737,30]
[405961889,1771460004584,-150.0,0.0004737,30]
[405961890,1771460004645,-150.0,0.0004737,30]
[405961891,1771460004703,-2929.215,0.00047397,120]
[405961892,1771460004763,-841.0,0.00047397,120]
[405961893,1771460004820,-1105.0,0.00047405,30]
[405961894,1771460004877,-500.0,0.00047405,120]
[405961895,1771460004934,-500.0,0.00047405,120]
[405961896,1771460004992,-500.0,0.00047405,120]
[405961897,1771460005049,-500.0,0.00047405,120]
[405961898,1771460005107,-500.0,0.00047405,120]
[405961899,1771460005165,-500.0,0.00047405,120]
[405961900,1771460005224,-500.0,0.00047405,120]
[405961901,1771460005281,-311.84250872,0.00047405,120]
[405961902,1771460005343,-1105.0,0.00047405,30]
[405961903,1771460005408,-500.0,0.000475,120]
[405961904,1771460005468,-506.0,0.00047548,30]
[405961905,1771460005526,-1444.0,0.00047562,120]
[405961906,1771460005588,-1505.18,0.00047616,120]
[405961907,1771460005650,-150.0,0.00047647,30]
[405961908,1771460005709,-16000.0,0.000477,120]
[405961909,1771460005765,-150.0,0.00047726,30]
[405961910,1771460005981,-150.0,0.00047726,30]
[405961911,1771460006042,-292.58,0.000478,60]
[405961912,1771460006100,-150.0,0.00047868,30]
[405961913,1771460006159,-150.0,0.00047868,30]
[405961914,1771460006218,-150.0,0.00047868,30]
[405961915,1771460006281,-150.0,0.00047868,30]
[405961916,1771460006345,-150.0,0.00047868,30]
[405961917,1771460006409,-5231.69159,0.00047868,30]
[405961918,1771460006472,-500.000001,0.00047894,31]
[405961919,1771460006535,-300.0,0.000479,120]
[405961920,1771460006593,-435.0,0.00048,120]
[405961921,1771460006655,-1505.18,0.00048024,120]
[405961922,1771460006715,-150.0,0.00048082,30]
[405961923,1771460006776,-449.0,0.00048088,120]
[405961924,1771460006834,-150.0,0.00048201,30]
[405961925,1771460006890,-150.0,0.00048201,30]
[405961926,1771460006948,-4393.8225,0.00048219,120]
[405961927,1771460007007,-465.58239202,0.00048329,120]
[405961928,1771460007062,-1000.0,0.000484,120]
[405961929,1771460007123,-1505.18,0.00048432,120]
[405961930,1771460007182,-150.0,0.00048438,30]
[405961931,1771460007239,-150.0,0.00048438,30]
[405961932,1771460007299,-506.0,0.00048502,31]
[405961933,1771460007360,-150.0,0.00048755,30]
[405961934,1771460007422,-150.0,0.00048795,30]
[405961935,1771460007484,-5732.0,0.000488,90]
[405961936,1771460007548,-150.0,0.0004882,120]
[405961937,1771460007613,-1505.18,0.0004884,120]
[405961938,1771460007675,-150.0,0.00048866,30]
[405961939,1771460007738,-150.0,0.00048866,30]
[405961940,1771460007800,-150.0,0.00048866,30]
[405961941,1771460007855,-150.0,0.00048866,30]
[405961942,1771460007912,-150.0,0.00048866,30]
[405961943,1771460007969,-530509.03946302,0.000489,120]
[405961944,1771460008025,-200.0,0.00048999,120]
[405961945,1771460008079,-10000.0,0.00049,120]
[405961946,1771460008141,-520.0,0.00049,120]
[405961947,1771460008199,-1078.17024557,0.00049,120]
[405961948,1771460008259,-20000.0,0.00049,120]
[405961949,1771460008318,-2517.0,0.00049,120]
[405961950,1771460008376,-1887.40117,0.00049,120]
[405961951,1771460008435,-35000.0,0.00049,30]
[405961952,1771460008492,-35000.0,0.00049,30]
[405961953,1771460008550,-35000.0,0.00049,30]
[405961954,1771460008610,-35000.0,0.00049,30]
[405961955,1771460008668,-35000.0,0.00049,30]
[405961956,1771460008728,-35000.0,0.00049,30]
[405961957,1771460008786,-35000.0,0.00049,30]
[405961958,1771460008847,-35000.0,0.00049,30]
[405961959,1771460008907,-35000.0,0.00049,30]
[405961960,1771460008965,-35000.0,0.00049,30]
[405961961,1771460009023,-33790.4350796,0.00049,30]
[405961962,1771460009083,-4280.5283149,0.00049,120]
[405961963,1771460009140,-51000.0,0.00049,120]
[405961964,1771460009194,-1046674.17781817,0.00049,120]
[405961965,1771460009251,-553.3581407,0.00049,120]
[405961966,1771460009311,-5858.43,0.00049041,120]
[405961967,1771460009370,-50000.0,0.0004911,120]
[405961968,1771460009429,-50000.0,0.0004913,120]
[405961969,1771460009492,-50000.0,0.0004915,120]
[405961970,1771460009554,-150.0,0.00049151,30]
[405961971,1771460009616,-150.0,0.00049151,30]
[405961972,1771460009679,-20000.0,0.000492,120]
[405961973,1771460009740,-1505.18,0.00049248,120]
[405961974,1771460009800,-50000.0,0.0004925,120]
[405961975,1771460009859,-20000.0,0.000493,120]
[405961976,1771460009918,-150.0,0.00049309,30]
[405961977,1771460009973,-1407.79112922,0.00049315,120]
[405961978,1771460010031,-3000.0,0.00049315,120]
[405961979,1771460010088,-3000.0,0.00049315,120]
[405961980,1771460010146,-3000.0,0.00049315,120]
[405961981,1771460010203,-1344.657,0.00049315,120]
[405961982,1771460010261,-5734.32239986,0.00049333,120]
[405961983,1771460010320,-50000.0,0.0004934,120]
[405961984,1771460010380,-50000.0,0.0004936,120]
[405961985,1771460010444,-7930.0,0.000494,30]
[405961986,1771460010503,-20000.0,0.000494,120]
[405961987,1771460010564,-50000.0,0.000494,120]
[405961988,1771460010624,-326.15,0.000494,120]
[405961989,1771460010690,-10000.0,0.0004942,120]
[405961990,1771460010749,-50000.0,0.0004945,120]
[405961991,1771460010807,-506.0,0.00049457,32]
[405961992,1771460010865,-5023.25850565,0.00049494,31]
[405961993,1771460010923,-10779.08,0.00049499,120]
[405961994,1771460010981,-16228.0,0.000495,120]
[405961995,1771460011040,-20000.0,0.000495,120]
[405961996,1771460011252,-925763.52912326,0.000495,120]
[405961997,1771460020183,-253.57,0.000383,30]
[405961998,1771460020279,-200.0,0.00041999,120]
[405961999,1771460020347,-150.0,0.00042173,120]
[405962000,1771460020420,-500.0,0.00042438,120]
[405962001,1771460020484,-500.0,0.00042575,120]
[405962002,1771460020546,-500.0,0.00042712,120]
[405962003,1771460020611,-500.0,0.00042849,120]
[405962004,1771460020674,-500.0,0.00042986,120]
[405962005,1771460020746,-500.0,0.00043123,120]
[405962006,1771460020810,-299.622959,0.0004322,120]
[405962007,1771460020873,-299.622959,0.0004322,120]
[405962008,1771460020935,-299.622959,0.0004322,120]
[405962009,1771460020998,-380.98,0.0004326,120]
[405962010,1771460021072,-200.0,0.00043499,120]
[405962011,1771460021132,-150.0,0.00043534,60]
[405962012,1771460021195,-500.0,0.00043534,60]
[405962013,1771460021254,-790.0,0.00043534,60]
[405962014,1771460021326,-150.0,0.00043589,60]
[405962015,1771460021396,-500.0,0.00043589,60]
[405962016,1771460021460,-790.0,0.00043589,60]
[405962017,1771460021531,-150.0,0.00043644,60]